fUST/lending_fUST_20250407
["ID","MTS","AMOUNT","RATE_DAILY","PERIOD"]
[357345237,1744009845553,-500.0,0.00038356,7]
[357345239,1744009845565,-500.0,0.00038356,7]
[357345241,1744009845575,-500.0,0.00038356,7]
[357345243,1744009845586,-500.0,0.00038356,7]
[357345245,1744009845596,-500.0,0.00038356,7]
[357345249,1744009845607,-500.0,0.00038356,7]
[357345251,1744009845616,-500.0,0.00038356,7]
[357345254,1744009845626,-500.00000001,0.00038356,7]
[357345256,1744009845636,-500.0,0.00038356,7]
[357345258,1744009845646,-500.0,0.00038356,7]
[357345261,1744009845656,-500.0,0.00038356,7]
[357345263,1744009845665,-500.0,0.00038356,7]
[357345265,1744009845675,-500.0,0.00038356,7]
[357345266,1744009845684,-500.0,0.00038356,7]
[357345269,1744009845694,-500.0,0.00038356,7]
[357345271,1744009845704,-500.0,0.00038356,7]
[357345273,1744009845714,-500.0,0.00038356,7]
[357345275,1744009845724,-500.0,0.00038356,7]
[357345277,1744009845734,-500.0,0.00038356,7]
[357345278,1744009845745,-500.0,0.00038356,7]
[357345281,1744009845756,-500.0,0.00038356,7]
[357345286,1744009845766,-236.19068407,0.00038356,7]
[357345287,1744009845776,-500.0,0.00038356,7]
[357345290,1744009845786,-500.0,0.00038356,7]
[357345292,1744009845801,-500.0,0.00038356,7]
[357345294,1744009845811,-500.0,0.00038356,7]
[357345296,1744009845821,-500.0,0.00038356,7]
[357345297,1744009845831,-500.0,0.00038356,7]
[357345299,1744009845841,-520.83,0.00038356,7]
[357345301,1744009845850,-500.0,0.00038356,7]
[357345303,1744009845860,-599.38781809,0.00038356,7]
[357345305,1744009845869,-500.0,0.00038356,7]
[357345307,1744009845879,-500.0,0.00038356,7]
[357345309,1744009845888,-500.0,0.00038356,7]
[357345311,1744009845898,-500.0,0.00038356,7]
[357345313,1744009845908,-500.0,0.00038356,7]
[357345315,1744009845918,-500.0,0.00038356,7]
[357345317,1744009845928,-500.0,0.00038356,7]
[357345319,1744009845938,-500.0,0.00038356,7]
[357345321,1744009845948,-500.0,0.00038356,7]
[357345323,1744009845959,-200.0,0.00038356,7]
[357345325,1744009845969,-500.0,0.00038356,7]
[357345327,1744009845979,-500.0,0.00038356,7]
[357345329,1744009845989,-500.0,0.00038356,7]
[357345331,1744009845999,-500.0,0.00038356,7]
[357345333,1744009846009,-500.0,0.00038356,7]
[357345335,1744009846020,-500.0,0.00038356,7]
[357345337,1744009846030,-500.0,0.00038356,7]
[357345339,1744009846045,-500.0,0.00038356,7]
[357345341,1744009846055,-500.0,0.00038356,7]
[357345343,1744009846065,-500.0,0.00038356,7]
[357345345,1744009846075,-178.05984027,0.00038356,7]
[357345347,1744009846085,-500.0,0.00038356,7]
[357345349,1744009846095,-500.0,0.00038356,7]
[357345351,1744009846105,-500.0,0.00038356,7]
[357345353,1744009846115,-500.0,0.00038356,7]
[357345355,1744009846125,-500.0,0.00038356,7]
[357345357,1744009846135,-504.06469679,0.00038356,7]
[357345359,1744009846145,-500.0,0.00038356,7]
[357345361,1744009846154,-500.0,0.00038356,7]
[357345363,1744009846164,-500.0,0.00038356,7]
[357345365,1744009846173,-604.80856427,0.00038356,7]
[357345367,1744009846183,-500.0,0.00038356,7]
[357345369,1744009846193,-500.0,0.00038356,7]
[357345371,1744009846203,-500.0,0.00038356,7]
[357345373,1744009846212,-500.0,0.00038356,7]
[357345374,1744009846222,-500.0,0.00038356,7]
[357345376,1744009846231,-500.0,0.00038356,7]
[357345378,1744009846242,-500.0,0.00038356,7]
[357345380,1744009846251,-500.0,0.00038356,7]
[357345382,1744009846260,-521.55,0.00038356,7]
[357345385,1744009846270,-505.31206834,0.00038356,7]
[357345387,1744009846280,-500.0,0.00038356,7]
[357345388,1744009846293,-500.0,0.00038356,7]
[357345390,1744009846304,-500.0,0.00038356,7]
[357345393,1744009846314,-500.0,0.00038356,7]
[357345395,1744009846326,-500.0,0.00038356,7]
[357345396,1744009846336,-500.0,0.00038356,7]
[357345399,1744009846348,-500.0,0.00038356,7]
[357345401,1744009846358,-500.0,0.00038356,7]
[357345403,1744009846369,-500.0,0.00038356,7]
[357345405,1744009846379,-500.0,0.00038356,7]
[357345407,1744009846389,-500.0,0.00038356,7]
[357345409,1744009846399,-500.0,0.00038356,7]
[357345411,1744009846408,-508.02298218,0.00038356,7]
[357345412,1744009846419,-288.51117528,0.00038356,7]
[357345415,1744009846433,-500.0,0.00038356,7]
[357345417,1744009846444,-503.0237735,0.00038356,7]
[357345419,1744009846456,-500.0,0.00038356,7]
[357345421,1744009846466,-500.0,0.00038356,7]
[357345423,1744009846481,-500.0,0.00038356,7]
[357345425,1744009846491,-500.0,0.00038356,7]
[357345427,1744009846501,-500.0,0.00038356,7]
[357345429,1744009846511,-500.0,0.00038356,7]
[357345431,1744009846520,-500.0,0.00038356,7]
[357345433,1744009846530,-500.0,0.00038356,7]
[357345435,1744009846543,-500.0,0.00038356,7]
[357345437,1744009846552,-500.0,0.00038356,7]
[357345439,1744009846563,-500.0,0.00038356,7]
[357345441,1744009846573,-500.0,0.00038356,7]
[357345443,1744009846583,-500.0,0.00038356,7]
[357345445,1744009846592,-500.0,0.00038356,7]
[357345447,1744009846602,-500.0,0.00038356,7]
[357345449,1744009846612,-510.23614406,0.00038356,7]
[357345451,1744009846622,-500.0,0.00038356,7]
[357345453,1744009846632,-500.0,0.00038356,7]
[357345455,1744009846642,-500.0,0.00038356,7]
[357345457,1744009846652,-500.0,0.00038356,7]
[357345459,1744009846662,-500.0,0.00038356,7]
[357345461,1744009846672,-500.0,0.00038356,7]
[357345463,1744009846682,-505.8210959,0.00038356,7]
[357345465,1744009846691,-500.0,0.00038356,7]
[357345467,1744009846701,-500.0,0.00038356,7]
[357345469,1744009846710,-541.24027418,0.00038356,7]
[357345471,1744009846720,-500.0,0.00038356,7]
[357345473,1744009846730,-500.0,0.00038356,7]
[357345475,1744009846740,-500.0,0.00038356,7]
[357345477,1744009846750,-500.0,0.00038356,7]
[357345479,1744009846760,-500.0,0.00038356,7]
[357345481,1744009846771,-504.84378516,0.00038356,7]
[357345483,1744009846781,-500.0,0.00038356,7]
[357345485,1744009846795,-500.0,0.00038356,7]
[357345487,1744009846805,-500.0,0.00038356,7]
[357345489,1744009846815,-500.0,0.00038356,7]
[357345492,1744009846830,-500.0,0.00038356,7]
[357345494,1744009846840,-500.0,0.00038356,7]
[357345496,1744009846855,-500.0,0.00038356,7]
[357345498,1744009846868,-503.71208096,0.00038356,7]
[357345500,1744009846877,-501.22554496,0.00038356,7]
[357345502,1744009846887,-500.0,0.00038356,7]
[357345504,1744009846896,-507.17438468,0.00038356,7]
[357345507,1744009846906,-500.0,0.00038356,7]
[357345508,1744009846915,-500.0,0.00038356,7]
[357345511,1744009846925,-500.0,0.00038356,7]
[357345513,1744009846935,-500.0,0.00038356,7]
[357345515,1744009846945,-500.0,0.00038356,7]
[357345517,1744009846954,-500.0,0.00038356,7]
[357345518,1744009846965,-500.0,0.00038356,7]
[357345520,1744009846976,-500.0,0.00038356,7]
[357345521,1744009846988,-500.0,0.00038356,7]
[357345522,1744009846998,-500.0,0.00038356,7]
[357345523,1744009847007,-500.0,0.00038356,7]
[357345524,1744009847017,-500.0,0.00038356,7]
[357345525,1744009847026,-500.0,0.00038356,7]
[357345526,1744009847035,-500.0,0.00038356,7]
[357345527,1744009847050,-500.0,0.00038356,7]
[357345528,1744009847059,-500.0,0.00038356,7]
[357345529,1744009847068,-500.0,0.00038356,7]
[357345530,1744009847077,-229.05452468,0.00038356,7]
[357345531,1744009847087,-500.0,0.00038356,7]
[357345532,1744009847096,-500.0,0.00038356,7]
[357345533,1744009847106,-500.0,0.00038356,7]
[357345534,1744009847115,-500.0,0.00038356,7]
[357345535,1744009847124,-500.0,0.00038356,7]
[357345536,1744009847133,-298.41562288,0.00038356,7]
[357345556,1744009847361,201.99144,0.000155,2]
[357349370,1744009922184,210.0,0.00046238,31]
[357349371,1744009922813,167.0,0.00046238,31]
[357349394,1744009988242,700.32,0.00046238,120]
[357349395,1744009988489,700.32,0.00046238,120]
[357349396,1744009988771,700.32,0.00046238,120]
[357349397,1744009988999,700.32,0.00046238,120]
[357349398,1744009989278,700.32,0.00046238,120]
[357349399,1744009989533,700.32,0.00046238,120]
[357349400,1744009989789,700.32,0.00046238,120]
[357349401,1744009990138,700.32,0.00046238,120]
[357349402,1744009990316,700.32,0.00046238,120]
[357349403,1744009990566,700.32,0.00046238,120]
[357349404,1744009990800,700.32,0.00046238,120]
[357349405,1744009991036,700.32,0.00046238,120]
[357349406,1744009991286,700.32,0.00046238,120]
[357349407,1744009991535,700.32,0.00046238,120]
[357349408,1744009991780,700.32,0.00046238,120]
[357349409,1744009992033,700.32,0.00046238,120]
[357349410,1744009992474,700.32,0.00046238,120]
[357349411,1744009992749,700.32,0.00046238,120]
[357349412,1744009993011,700.32,0.00046238,120]
[357349413,1744009993358,700.32,0.00046238,120]
[357349414,1744009993623,700.32,0.00046238,120]
[357349415,1744009993880,700.32,0.00046238,120]
[357349416,1744009994121,700.32,0.00046238,120]
[357349417,1744009994377,700.48,0.00046238,120]
[357349979,1744010035496,899.98,0.00046238,30]
[357349980,1744010080178,1000.0,0.00046195,60]
[357350209,1744010103274,280.21,0.00014,10]
[357350211,1744010103307,155.498,0.000145,10]
[357353059,1744010303164,176.77599,0.00013699,2]
[357353060,1744010314759,-500.0,0.00025408,2]
[357353061,1744010345261,1305.57902208,0.00046195,30]
[357353064,1744010418219,200.0,0.00046198,30]
[357353065,1744010419374,207.4,0.00046198,30]
[357353066,1744010420022,215.0738,0.00046198,30]
[357353067,1744010420648,223.0315306,0.00046198,30]
[357353068,1744010421301,223.0315306,0.00046198,30]
[357353071,1744010597253,1000.87168594,0.00046198,30]
[357353343,1744010615749,1000.0,0.00046198,30]
[357353349,1744010649986,303.6257,0.00046198,30]
[357353423,1744010716409,151.0,0.00046305,30]
[357353437,1744010721133,336.59148496,0.00046305,30]
[357353509,1744010844878,500.0,0.00046305,30]
[357353514,1744010854847,3026.65371774,0.00046305,30]
[357353554,1744010914948,22542.73695041,0.00046305,30]
[357353556,1744010918060,278.5638973,0.0001,2]
[357353576,1744010924250,668.0520202,0.0001,7]
[357353579,1744010925270,617.06158995,9e-05,2]
[357353583,1744010928534,10642.89715705,0.00046305,60]
[357353584,1744010928635,163.82415669,0.00022,10]
[357353588,1744010929665,403.28897035,0.0001,2]
[357353596,1744010931884,2920.72810286,0.0002,120]
[357353597,1744010932343,633.4892139,0.00046305,120]
[357353609,1744010960846,446.5,0.00046305,30]
[357353631,1744011032561,-500.0,0.00023294,2]
[357353632,1744011032572,-672.641879,0.00023614,2]
[357353633,1744011032581,-500.0,0.00024152,2]
[357353634,1744011032592,-500.0,0.00024247,2]
[357353635,1744011032602,-500.0,0.00024625,2]
[357353636,1744011032612,-4942.17499071,0.000249,5]
[357353637,1744011032621,-300.0,0.00024999,2]
[357353638,1744011032630,-16494.93521885,0.00025,7]
[357353639,1744011032640,-9699.77098917,0.00025,2]
[357353640,1744011032652,-52193.49984763,0.00025,2]
[357353641,1744011032662,-500.0,0.00025176,2]
[357353642,1744011032672,-1236.0434774,0.00025239,2]
[357353643,1744011032681,-1025.9735592,0.00025262,2]
[357353644,1744011032693,-241.5457505,0.00025342,2]
[357353645,1744011032703,-152.0,0.00025512,2]
[357353646,1744011032713,-500.0,0.00025564,2]
[357353647,1744011032723,-500.0,0.00025596,2]
[357353648,1744011032733,-1527.63947226,0.00026264,2]
[357353649,1744011032743,-8409.38,0.00026354,3]
[357353650,1744011032753,-500.02099349,0.00026364,2]
[357353651,1744011032763,-330.46059013,0.00026364,2]
[357353652,1744011032774,-500.0,0.00026364,2]
[357353653,1744011032784,-500.0,0.00026364,2]
[357353654,1744011032795,-500.0,0.00026364,2]
[357353655,1744011032805,-500.0,0.00026364,2]
[357353656,1744011032815,-500.0,0.00026364,2]
[357353657,1744011032825,-550.0,0.00026364,2]
[357353658,1744011032835,-500.0,0.00026364,2]
[357353659,1744011032845,-164.97350521,0.00026364,2]
[357353660,1744011032858,-500.0,0.00026364,2]
[357353661,1744011032867,-500.0,0.00026364,2]
[357353662,1744011032878,-500.0,0.00026364,2]
[357353663,1744011032887,-500.0,0.00026364,2]
[357353664,1744011032899,-500.0,0.00026364,2]
[357353665,1744011032909,-500.0,0.00026364,2]
[357353666,1744011032919,-500.0,0.00026364,2]
[357353667,1744011032929,-500.0,0.00026364,2]
[357353668,1744011032943,-500.0,0.00026364,2]
[357353669,1744011032954,-384.37104708,0.00026364,2]
[357353670,1744011032965,-336.39879764,0.00026364,2]
[357353671,1744011032978,-163.60120236,0.00026364,2]
[357353672,1744011032988,-500.0,0.00026364,2]
[357353673,1744011032997,-500.0,0.00026364,2]
[357353674,1744011033007,-500.0,0.00026364,2]
[357353675,1744011033018,-500.0,0.00026364,2]
[357353676,1744011033030,-500.0,0.00026364,2]
[357353677,1744011033041,-500.0,0.00026364,2]
[357353678,1744011033054,-287.67596427,0.00026364,2]
[357353679,1744011033065,-500.0,0.00026364,2]
[357353680,1744011033077,-500.0,0.00026364,2]
[357353681,1744011033088,-500.0,0.00026364,2]
[357353682,1744011033099,-500.0,0.00026364,2]
[357353683,1744011033110,-500.0,0.00026364,2]
[357353684,1744011033121,-500.0,0.00026364,2]
[357353685,1744011033131,-625.93006157,0.00026364,2]
[357353686,1744011033142,-500.0,0.00026364,2]
[357353687,1744011033152,-500.0,0.00026364,2]
[357353688,1744011033163,-500.0,0.00026364,2]
[357353689,1744011033174,-500.0,0.00026364,2]
[357353690,1744011033184,-500.0,0.00026364,2]
[357353691,1744011033200,-500.0,0.00026364,2]
[357353692,1744011033210,-500.0,0.00026364,2]
[357353693,1744011033221,-500.0,0.00026364,2]
[357353694,1744011033231,-500.0,0.00026364,2]
[357353695,1744011033240,-500.0,0.00026364,2]
[357353696,1744011033251,-500.0,0.00026364,2]
[357353697,1744011033262,-500.0,0.00026364,2]
[357353698,1744011033272,-500.0,0.00026364,2]
[357353699,1744011033283,-500.0,0.00026364,2]
[357353700,1744011033292,-500.0,0.00026364,2]
[357353701,1744011033302,-500.0,0.00026364,2]
[357353702,1744011033313,-500.0,0.00026364,2]
[357353703,1744011033323,-500.0,0.00026364,2]
[357353704,1744011033334,-500.0,0.00026364,2]
[357353705,1744011033343,-500.0,0.00026364,2]
[357353706,1744011033354,-500.0,0.00026364,2]
[357353707,1744011033364,-500.0,0.00026364,2]
[357353708,1744011033375,-500.0,0.00026364,2]
[357353709,1744011033386,-500.0,0.00026364,2]
[357353710,1744011033396,-500.0,0.00026364,2]
[357353711,1744011033407,-500.0,0.00026364,2]
[357353712,1744011033419,-500.0,0.00026364,2]
[357353713,1744011033428,-500.0,0.00026364,2]
[357353714,1744011033441,-500.0,0.00026364,2]
[357353715,1744011033451,-500.0,0.00026364,2]
[357353716,1744011033462,-463.58681779,0.00026364,2]
[357353717,1744011033475,-36.41318221,0.00026364,2]
[357353718,1744011033486,-500.0,0.00026364,2]
[357353719,1744011033497,-403.10681779,0.00026364,2]
[357353747,1744011038553,-21849.33521145,0.00026364,2]
[357353748,1744011038566,-7830.00503379,0.00026364,2]
[357353750,1744011038577,-20320.65975476,0.00026364,2]
[357353752,1744011038588,-96.89318221,0.00026364,2]
[357353754,1744011038598,-500.0,0.00026364,2]
[357353756,1744011038607,-500.0,0.00026364,2]
[357353757,1744011038617,-500.0,0.00026364,2]
[357353758,1744011038627,-500.0,0.00026364,2]
[357353759,1744011038637,-500.0,0.00026364,2]
[357353760,1744011038647,-500.0,0.00026364,2]
[357353761,1744011038656,-650.00000001,0.00026364,2]
[357353762,1744011038666,-500.0,0.00026364,2]
[357353763,1744011038675,-400.0,0.00026364,2]
[357353764,1744011038685,-500.0,0.00026364,2]
[357353765,1744011038696,-500.0,0.00026364,2]
[357353766,1744011038705,-500.0,0.00026364,2]
[357353767,1744011038715,-177.77946596,0.00026364,2]
[357353768,1744011038724,-500.0,0.00026364,2]
[357353769,1744011038734,-500.0,0.00026364,2]
[357353770,1744011038744,-500.0,0.00026364,2]
[357353771,1744011038754,-500.0,0.00026364,2]
[357353772,1744011038764,-500.0,0.00026364,2]
[357353773,1744011038774,-500.0,0.00026364,2]
[357353774,1744011038783,-500.0,0.00026364,2]
[357353775,1744011038793,-500.0,0.00026364,2]
[357353776,1744011038802,-500.0,0.00026364,2]
[357353777,1744011038812,-500.0,0.00026364,2]
[357353778,1744011038822,-500.0,0.00026364,2]
[357353779,1744011038832,-500.0,0.00026364,2]
[357353780,1744011038842,-500.0,0.00026364,2]
[357353781,1744011038852,-500.0,0.00026364,2]
[357353782,1744011038861,-500.0,0.00026364,2]
[357353783,1744011038875,-500.0,0.00026364,2]
[357353784,1744011038885,-500.0,0.00026364,2]
[357353785,1744011038895,-500.0,0.00026364,2]
[357353786,1744011038905,-754.99474186,0.00026828,2]
[357353787,1744011038915,-1349.47104593,0.00026962,2]
[357353788,1744011038924,-151.0,0.00026965,2]
[357353789,1744011038934,-32756.6038013,0.00026969,2]
[357353790,1744011038946,-1349.47104593,0.00026969,2]
[357353791,1744011038955,-160.48,0.00026972,2]
[357353792,1744011038964,-500.0,0.00026973,2]
[357353793,1744011038974,-500.0,0.00026973,2]
[357353794,1744011038984,-500.0,0.00026973,2]
[357353795,1744011038993,-500.0,0.00026978,2]
[357353796,1744011039003,-239.38443636,0.00026978,2]
[357353797,1744011039013,-168.76549274,0.00026978,2]
[357353798,1744011039022,-500.0,0.00026978,2]
[357353799,1744011039033,-500.0,0.00026978,2]
[357353800,1744011039042,-152.27,0.0002698,2]
[357353801,1744011039052,-24900.0,0.00026982,2]
[357353802,1744011039061,-420.0,0.00027082,2]
[357353803,1744011039071,-500.0,0.000271,2]
[357353804,1744011039080,-446.02157172,0.000271,2]
[357353805,1744011039090,-166.61976,0.00027214,2]
[357353806,1744011039099,-176.77599,0.00027397,2]
[357353807,1744011039109,-500.0,0.00027397,5]
[357353808,1744011039118,-188.2108827,0.00027403,2]
[357353809,1744011039130,-500.0,0.0002759,5]
[357353810,1744011039139,-500.0,0.0002759,5]
[357353811,1744011039149,-500.0,0.0002759,5]
[357353812,1744011039159,-500.0,0.0002759,5]
[357353813,1744011039168,-500.0,0.0002759,5]
[357353814,1744011039177,-500.0,0.0002759,5]
[357353815,1744011039186,-500.0,0.0002759,5]
[357353816,1744011039196,-500.0,0.0002759,5]
[357353817,1744011039206,-500.0,0.0002759,5]
[357353818,1744011039215,-500.0,0.0002759,5]
[357353819,1744011039225,-501.50076126,0.0002759,5]
[357353820,1744011039234,-271.39089633,0.0002759,5]
[357353821,1744011039243,-500.0,0.0002759,5]
[357353822,1744011039252,-16818.76,0.00027724,3]
[357353823,1744011039262,-1349.47104593,0.00027788,2]
[357353824,1744011039272,-32756.6038013,0.00027798,2]
[357353825,1744011039281,-500.0,0.000278,2]
[357353826,1744011039291,-259.63903811,0.00027808,5]
[357353827,1744011039300,-500.0,0.00027808,5]
[357353828,1744011039310,-210.28299832,0.00027808,5]
[357353829,1744011039319,-502.21521815,0.00027808,5]
[357353830,1744011039328,-3903.8920938,0.00028,60]
[357353831,1744011039337,-479.19721899,0.0002805,2]
[357353832,1744011039347,-500.0,0.0002815,2]
[357353833,1744011039357,-500.0,0.0002815,5]
[357353834,1744011039366,-500.0,0.0002815,5]
[357353835,1744011039376,-513.81120663,0.0002815,5]
[357353836,1744011039386,-500.0,0.00028204,2]
[357353837,1744011039396,-1349.47104593,0.00028331,2]
[357353838,1744011039406,-12527.9349248,0.00028341,3]
[357353839,1744011039416,-500.4865879,0.00029273,5]
[357353840,1744011039426,-500.25893725,0.00029273,5]
[357353841,1744011039435,-500.0,0.00029273,5]
[357353842,1744011039447,-500.0,0.00029273,5]
[357353843,1744011039458,-546.88739312,0.00029273,5]
[357353844,1744011039468,-587.0,0.00029339,2]
[357353845,1744011039478,-408.45,0.000298,31]
[357353846,1744011039488,-408.45,0.000298,31]
[357353847,1744011039498,-408.45,0.000298,31]
[357353848,1744011039507,-408.45,0.000298,31]
[357353849,1744011039518,-408.45,0.000298,31]
[357353850,1744011039527,-408.45,0.000298,31]
[357353851,1744011039537,-408.45,0.000298,31]
[357353852,1744011039546,-408.45,0.000298,31]
[357353853,1744011039556,-408.45,0.000298,31]
[357353854,1744011039565,-408.45,0.000298,31]
[357353855,1744011039575,-408.45,0.000298,31]
[357353856,1744011039584,-408.45,0.000298,31]
[357353857,1744011039593,-1515.09860418,0.0002985,2]
[357353858,1744011039603,-20000.0,0.000299,3]
[357353859,1744011039612,-479.19721897,0.00030602,2]
[357353860,1744011039622,-1349.47104593,0.00030834,2]
[357353861,1744011039632,-32756.6038013,0.00030844,2]
[357353862,1744011039641,-500.0,0.0003091,7]
[357353863,1744011039651,-500.0,0.00031289,7]
[357353864,1744011039659,-240.24683501,0.00031485,7]
[357353865,1744011039669,-700.0,0.00031784,2]
[357353866,1744011039679,-500.0,0.00032179,7]
[357353867,1744011039688,-1000.0,0.00032452,5]
[357353868,1744011039701,-1000.0,0.00032452,5]
[357353869,1744011039711,-1000.0,0.00032452,2]
[357353871,1744011039721,-500.0,0.0003255,5]
[357353872,1744011039731,-1000.0,0.00032579,5]
[357353873,1744011039740,-1000.0,0.00032877,5]
[357353874,1744011039750,-1000.0,0.00033069,5]
[357353875,1744011039759,-1000.0,0.00033069,5]
[357353876,1744011039768,-1000.0,0.00033069,5]
[357353877,1744011039777,-500.0,0.00033069,5]
[357353878,1744011039787,-1000.0,0.00033069,5]
[357353879,1744011039797,-1000.0,0.00033069,5]
[357353880,1744011039806,-1000.0,0.00033069,5]
[357353881,1744011039816,-500.0,0.00033069,5]
[357353882,1744011039825,-1000.0,0.00033069,5]
[357353883,1744011039835,-479.19721897,0.00033153,2]
[357353884,1744011039844,-1000.0,0.00033287,5]
[357353885,1744011039856,-500.0,0.00033308,7]
[357353886,1744011039866,-598.8665871,0.0003355,2]
[357353887,1744011039878,-1000.0,0.00033629,2]
[357353888,1744011039888,-1000.0,0.00033629,5]
[357353889,1744011039898,-281.71525212,0.0003398,3]
[357353890,1744011039908,-500.0,0.0003398,5]
[357353891,1744011039917,-12527.9349248,0.00034018,2]
[357353892,1744011039926,-160.0,0.00034146,2]
[357353893,1744011039936,-500.0,0.00034173,7]
[357353894,1744011039948,-500.0,0.0003434,5]
[357353895,1744011039959,-500.0,0.0003434,5]
[357353896,1744011039968,-500.0,0.0003434,5]
[357353897,1744011039978,-500.0,0.0003434,5]
[357353898,1744011039986,-500.0,0.0003445,5]
[357353899,1744011039996,-1349.47104593,0.0003459,2]
[357353900,1744011040006,-500.0,0.00034591,7]
[357353901,1744011040015,-281.08662353,0.000346,5]
[357353902,1744011040025,-500.0,0.000346,5]
[357353903,1744011040034,-500.62051794,0.000346,5]
[357353904,1744011040043,-500.0,0.000346,5]
[357353905,1744011040053,-1329.3325778,0.00034728,12]
[357353906,1744011040062,-32756.6038013,0.00034742,2]
[357353907,1744011040072,-1000.0,0.00034752,5]
[357353908,1744011040081,-485.99970284,0.00034752,5]
[357353909,1744011040091,-500.0,0.00034841,7]
[357353910,1744011040101,-2790.44236172,0.0003487,4]
[357353911,1744011040115,-341.44190753,0.0003487,4]
[357353912,1744011040125,-71.68511879,0.00034994,7]
[357353913,1744011040749,-26.533,0.00026959,3]
[357353953,1744011044206,-2389.81089615,0.00026959,3]
[357353954,1744011045064,-1788.34610385,0.00026959,3]
[357353955,1744011045074,-7722.5806819,0.00028329,3]
[357354092,1744011146697,-300.0,0.00024953,10]
[357354093,1744011152770,-300.0,0.00024953,10]
[357354100,1744011342602,500.0,0.00046447,120]
[357354105,1744011394117,176.77599,0.00013699,2]
[357354112,1744011452530,9995.67823847,0.00046447,30]
[357354148,1744011655448,10706.000001,0.00046448,120]
[357354163,1744011729869,3360.23042983,0.00046448,120]
[357354172,1744011835006,522182.35,0.00046448,30]
[357354691,1744011975721,2690.15171253,0.00046449,30]
[357354692,1744011983637,1634.92654056,0.00046449,30]
[357354693,1744012004436,500.0,0.00046449,120]
[357354892,1744012081593,210.0,0.00046449,31]
[357354893,1744012081994,167.0,0.00046449,31]
[357354894,1744012087047,2000.0,0.00046449,60]
[357354895,1744012148892,753.74,0.00046449,120]
[357354896,1744012149131,753.74,0.00046449,120]
[357354897,1744012149379,753.74,0.00046449,120]
[357354898,1744012149634,753.74,0.00046449,120]
[357354899,1744012150111,753.74,0.00046449,120]
[357354900,1744012150154,753.74,0.00046449,120]
[357354901,1744012150403,753.74,0.00046449,120]
[357354902,1744012150648,753.74,0.00046449,120]
[357354903,1744012150883,753.74,0.00046449,120]
[357354904,1744012151132,753.74,0.00046449,120]
[357354905,1744012151383,753.74,0.00046449,120]
[357354906,1744012151643,753.74,0.00046449,120]
[357354907,1744012151890,753.74,0.00046449,120]
[357354908,1744012152372,753.74,0.00046449,120]
[357354909,1744012152641,753.74,0.00046449,120]
[357354910,1744012152869,753.74,0.00046449,120]
[357354911,1744012153128,753.74,0.00046449,120]
[357354912,1744012153391,753.74,0.00046449,120]
[357354914,1744012153659,753.74,0.00046449,120]
[357354919,1744012154243,753.74,0.00046449,120]
[357354922,1744012154480,753.74,0.00046449,120]